[Event "December 12 Late 2023"]
[Site "https://www.chess.com"]
[Date "2023.12.12"]
[Round "2"]
[White "ogpin"]
[Black "Dmitrenko, Viktor"]
[Result "0-1"]
[Board "145"]
[TimeControl "180+1"]
[BlackFideId "14110270"]
[WhiteElo "2134"]
[BlackElo "2455"]
[BlackTeam "UKR"]
[WhiteClock "0:00:00"]
[BlackClock "0:00:06"]

1. e4 {[%clk 0:03:00]}  e6 {[%clk 0:03:00]} 2. d4 {[%clk 0:02:55]}  d5 {[%clk 0:03:01]} 3. e5 {[%clk 0:02:56]}  c5 {[%clk 0:03:01]} 4. c3 {[%clk 0:02:56]}  Nc6 {[%clk 0:03:01]} 5. Nf3 {[%clk 0:02:57]}  Bd7 {[%clk 0:03:01]} 6. Bd3 {[%clk 0:02:57]}  Rc8 {[%clk 0:03:01]} 7. O-O {[%clk 0:02:57]}  cxd4 {[%clk 0:02:59]} 8. Re1 {[%clk 0:02:56]}  a6 {[%clk 0:02:52]} 9. a3 {[%clk 0:02:46]}  dxc3 {[%clk 0:02:38]} 10. Nxc3 {[%clk 0:02:47]}  Na5 {[%clk 0:02:35]} 11. Bg5 {[%clk 0:02:27]}  Be7 {[%clk 0:02:33]} 12. Be3 {[%clk 0:02:27]}  Nc4 {[%clk 0:02:22]} 13. Bxc4 {[%clk 0:02:23]}  Rxc4 {[%clk 0:02:20]} 14. Qb3 {[%clk 0:02:14]}  b5 {[%clk 0:02:14]} 15. Rad1 {[%clk 0:02:04]}  Qc8 {[%clk 0:02:04]} 16. Nd2 {[%clk 0:02:02]}  d4 {[%clk 0:01:48]} 17. Nxc4 {[%clk 0:01:43]}  bxc4 {[%clk 0:01:49]} 18. Qb6 {[%clk 0:01:35]}  dxe3 {[%clk 0:01:45]} 19. Ne4 {[%clk 0:01:19]}  exf2+ {[%clk 0:01:40]} 20. Kxf2 {[%clk 0:01:16]}  Nh6 {[%clk 0:01:40]} 21. Qa7 {[%clk 0:01:10]}  Ng4+ {[%clk 0:01:28]} 22. Kg1 {[%clk 0:01:10]}  Nxe5 {[%clk 0:01:26]} 23. Nd6+ {[%clk 0:01:05]}  Bxd6 {[%clk 0:01:26]} 24. Rxd6 {[%clk 0:01:06]}  Nd3 {[%clk 0:01:12]} 25. Re4 {[%clk 0:00:56]}  Ke7 {[%clk 0:00:40]} 26. Red4 {[%clk 0:00:54]}  Rd8 {[%clk 0:00:38]} 27. Qb6 {[%clk 0:00:47]}  Ne5 {[%clk 0:00:28]} 28. Qb4 {[%clk 0:00:45]}  Ke8 {[%clk 0:00:26]} 29. Qe1 {[%clk 0:00:36]}  f6 {[%clk 0:00:25]} 30. Qh4 {[%clk 0:00:35]}  Qc5 {[%clk 0:00:23]} 31. Qh5+ {[%clk 0:00:32]}  Ke7 {[%clk 0:00:19]} 32. Qxh7 {[%clk 0:00:31]}  Qxd6 {[%clk 0:00:19]} 33. Rxd6 {[%clk 0:00:31]}  Kxd6 {[%clk 0:00:18]} 34. Qxg7 {[%clk 0:00:31]}  f5 {[%clk 0:00:16]} 35. h4 {[%clk 0:00:25]}  Rc8 {[%clk 0:00:14]} 36. h5 {[%clk 0:00:25]}  Rb8 {[%clk 0:00:11]} 37. h6 {[%clk 0:00:23]}  Rxb2 {[%clk 0:00:11]} 38. h7 {[%clk 0:00:24]}  Rb1+ {[%clk 0:00:10]} 39. Kh2 {[%clk 0:00:23]}  Ng4+ {[%clk 0:00:10]} 40. Qxg4 {[%clk 0:00:20]}  fxg4 {[%clk 0:00:10]} 41. h8=Q {[%clk 0:00:21]}  e5 {[%clk 0:00:09]} 42. Qf6+ {[%clk 0:00:20]}  Be6 {[%clk 0:00:09]} 43. Qd8+ {[%clk 0:00:20]}  Bd7 {[%clk 0:00:06]} 44. Qf6+ {[%clk 0:00:20]}  Be6 {[%clk 0:00:07]} 45. Qd8+ {[%clk 0:00:21]}  Bd7 {[%clk 0:00:07]} 46. Qf8+ {[%clk 0:00:21]}  Kd5 {[%clk 0:00:05]} 47. Qf7+ {[%clk 0:00:21]}  Be6 {[%clk 0:00:05]} 48. Qg6 {[%clk 0:00:17]}  Rb3 {[%clk 0:00:04]} 49. Qc2 {[%clk 0:00:10]}  g3+ {[%clk 0:00:04]} 50. Kg1 {[%clk 0:00:08]}  Rd3 {[%clk 0:00:04]} 51. Kf1 {[%clk 0:00:06]}  Bg4 {[%clk 0:00:04]} 52. Ke1 {[%clk 0:00:02]}  Rd1+ {[%clk 0:00:04]} 53. Qxd1+ {[%clk 0:00:03]}  Bxd1 {[%clk 0:00:04]} 54. Kxd1 {[%clk 0:00:04]}  Kd4 {[%clk 0:00:05]} 55. Kd2 {[%clk 0:00:04]}  c3+ {[%clk 0:00:05]} 56. Kc2 {[%clk 0:00:05]}  Kc4 {[%clk 0:00:06]} 57. a4 {[%clk 0:00:05]}  a5 {[%clk 0:00:06]} 58. Kd1 {[%clk 0:00:05]}  e4 {[%clk 0:00:06]} 59. Ke2 {[%clk 0:00:06]}  c2 {[%clk 0:00:06]} 60. Ke3 {[%clk 0:00:07]}  Kc3 {[%clk 0:00:06]} 61. Kxe4 {[%clk 0:00:08]}  c1=Q {[%clk 0:00:06]} 62. Kf3 {[%clk 0:00:09]}  Qe1 {[%clk 0:00:06]} 63. Kg4 {[%clk 0:00:09]}  Qf2 {[%clk 0:00:07]} 64. Kh3 {[%clk 0:00:10]}  Kb4 {[%clk 0:00:06]} 65. Kg4 {[%clk 0:00:11]}  Qxg2 {[%clk 0:00:06]} 66. Kf4 {[%clk 0:00:12]}  Qf2+ {[%clk 0:00:06]} 67. Ke5 {[%clk 0:00:00]}  g2 {[%clk 0:00:06]} 0-1

[Event "December 12 Late 2023"]
[Site "https://www.chess.com"]
[Date "2023.12.12"]
[Round "2"]
[White "Weisz, Bryan"]
[Black "Hartikainen, Jarmo"]
[Result "1-0"]
[Board "146"]
[TimeControl "180+1"]
[WhiteFideId "30934133"]
[BlackFideId "503134"]
[WhiteElo "2451"]
[BlackElo "2133"]
[WhiteTeam "USA"]
[BlackTeam "FIN"]
[WhiteClock "0:00:28"]
[BlackClock "0:00:06"]

1. Nh3 {[%clk 0:02:54]}  b6 {[%clk 0:02:53]} 2. Na3 {[%clk 0:02:54]}  Bb7 {[%clk 0:02:53]} 3. Nf4 {[%clk 0:02:54]}  e5 {[%clk 0:02:51]} 4. Nd3 {[%clk 0:02:53]}  Nc6 {[%clk 0:02:46]} 5. Nc4 {[%clk 0:02:52]}  f6 {[%clk 0:02:36]} 6. e4 {[%clk 0:02:49]}  d5 {[%clk 0:02:25]} 7. exd5 {[%clk 0:02:47]}  Qxd5 {[%clk 0:02:26]} 8. Ne3 {[%clk 0:02:43]}  Qe6 {[%clk 0:02:18]} 9. c3 {[%clk 0:02:31]}  O-O-O {[%clk 0:02:09]} 10. Be2 {[%clk 0:02:29]}  Nh6 {[%clk 0:02:01]} 11. b4 {[%clk 0:02:15]}  g5 {[%clk 0:01:52]} 12. Nb2 {[%clk 0:02:08]}  Kb8 {[%clk 0:01:43]} 13. a4 {[%clk 0:01:58]}  e4 {[%clk 0:01:34]} 14. a5 {[%clk 0:01:56]}  Ne5 {[%clk 0:01:33]} 15. axb6 {[%clk 0:01:54]}  cxb6 {[%clk 0:01:32]} 16. Qa4 {[%clk 0:01:50]}  Nd3+ {[%clk 0:01:18]} 17. Nxd3 {[%clk 0:01:45]}  exd3 {[%clk 0:01:19]} 18. Qxa7+ {[%clk 0:01:45]}  Kc8 {[%clk 0:01:11]} 19. Bf3 {[%clk 0:01:42]}  Bxf3 {[%clk 0:01:10]} 20. gxf3 {[%clk 0:01:42]}  f5 {[%clk 0:00:45]} 21. Qa8+ {[%clk 0:01:29]}  Kd7 {[%clk 0:00:45]} 22. Qd5+ {[%clk 0:01:17]}  Qxd5 {[%clk 0:00:45]} 23. Nxd5 {[%clk 0:01:18]}  Kc6 {[%clk 0:00:45]} 24. c4 {[%clk 0:01:16]}  Re8+ {[%clk 0:00:44]} 25. Kd1 {[%clk 0:01:14]}  Bg7 {[%clk 0:00:39]} 26. Ra7 {[%clk 0:01:13]}  Bd4 {[%clk 0:00:38]} 27. Ba3 {[%clk 0:01:06]}  b5 {[%clk 0:00:27]} 28. Ra6+ {[%clk 0:00:49]}  Kb7 {[%clk 0:00:22]} 29. cxb5 {[%clk 0:00:47]}  Ra8 {[%clk 0:00:21]} 30. Re1 {[%clk 0:00:30]}  Rxa6 {[%clk 0:00:21]} 31. Re7+ {[%clk 0:00:30]}  Kc8 {[%clk 0:00:16]} 32. bxa6 {[%clk 0:00:30]}  Kd8 {[%clk 0:00:15]} 33. a7 {[%clk 0:00:30]}  Bxa7 {[%clk 0:00:12]} 34. Rxa7 {[%clk 0:00:30]}  Re8 {[%clk 0:00:12]} 35. Ra8+ {[%clk 0:00:28]}  Kd7 {[%clk 0:00:11]} 36. Nf6+ {[%clk 0:00:28]}  Ke6 {[%clk 0:00:12]} 37. Nxe8 {[%clk 0:00:28]}  Kd5 {[%clk 0:00:12]} 38. b5 {[%clk 0:00:29]}  Kc4 {[%clk 0:00:13]} 39. b6 {[%clk 0:00:29]}  Kb3 {[%clk 0:00:14]} 40. b7 {[%clk 0:00:29]}  Ka2 {[%clk 0:00:06]} 41. b8=Q {[%clk 0:00:28]} 1-0

[Event "December 12 Late 2023"]
[Site "https://www.chess.com"]
[Date "2023.12.12"]
[Round "2"]
[White "Powell, Paul"]
[Black "Goncalves, Davi Sulzbacher"]
[Result "0-1"]
[Board "147"]
[TimeControl "180+1"]
[WhiteFideId "2005840"]
[BlackFideId "2154510"]
[WhiteElo "2129"]
[BlackElo "2451"]
[WhiteTeam "USA"]
[BlackTeam "BRA"]
[WhiteClock "0:01:48"]
[BlackClock "0:01:51"]

1. d4 {[%clk 0:03:00]}  d5 {[%clk 0:03:00]} 2. Nf3 {[%clk 0:03:00]}  Nf6 {[%clk 0:03:00]} 3. Bf4 {[%clk 0:03:00]}  Bg4 {[%clk 0:03:01]} 4. Nbd2 {[%clk 0:02:58]}  e6 {[%clk 0:03:01]} 5. h3 {[%clk 0:02:59]}  Bh5 {[%clk 0:03:01]} 6. c3 {[%clk 0:02:56]}  Bd6 {[%clk 0:03:02]} 7. Ne5 {[%clk 0:02:56]}  O-O {[%clk 0:03:00]} 8. g4 {[%clk 0:02:56]}  Bg6 {[%clk 0:03:00]} 9. e3 {[%clk 0:02:56]}  Nbd7 {[%clk 0:02:53]} 10. Qf3 {[%clk 0:02:56]}  Bxe5 {[%clk 0:02:30]} 11. dxe5 {[%clk 0:02:54]}  Ne4 {[%clk 0:02:31]} 12. O-O-O {[%clk 0:02:52]}  Nxd2 {[%clk 0:02:30]} 13. Rxd2 {[%clk 0:02:45]}  Be4 {[%clk 0:02:30]} 14. Qg3 {[%clk 0:02:46]}  Bxh1 {[%clk 0:02:30]} 15. f3 {[%clk 0:02:45]}  g5 {[%clk 0:02:27]} 16. Rh2 {[%clk 0:02:32]}  gxf4 {[%clk 0:02:25]} 17. Qxf4 {[%clk 0:02:32]}  Bxf3 {[%clk 0:02:20]} 18. Qxf3 {[%clk 0:02:32]}  Nxe5 {[%clk 0:02:20]} 19. Qg3 {[%clk 0:02:23]}  Ng6 {[%clk 0:02:17]} 20. h4 {[%clk 0:02:22]}  Qd6 {[%clk 0:02:17]} 21. Qg2 {[%clk 0:02:20]}  c5 {[%clk 0:02:14]} 22. h5 {[%clk 0:02:20]}  Ne5 {[%clk 0:02:13]} 23. g5 {[%clk 0:02:20]}  d4 {[%clk 0:02:11]} 24. g6 {[%clk 0:02:18]}  fxg6 {[%clk 0:02:11]} 25. hxg6 {[%clk 0:02:18]}  Nxg6 {[%clk 0:02:10]} 26. Bd3 {[%clk 0:02:13]}  Rf6 {[%clk 0:02:04]} 27. Qh3 {[%clk 0:02:06]}  Qe7 {[%clk 0:01:52]} 28. Rg2 {[%clk 0:01:58]}  Raf8 {[%clk 0:01:51]} 29. a3 {[%clk 0:01:55]}  dxc3 {[%clk 0:01:50]} 30. bxc3 {[%clk 0:01:53]}  c4 {[%clk 0:01:50]} 31. Bc2 {[%clk 0:01:53]}  Qxa3+ {[%clk 0:01:50]} 32. Kb1 {[%clk 0:01:48]}  Rf1+ {[%clk 0:01:51]} 0-1

[Event "December 12 Late 2023"]
[Site "https://www.chess.com"]
[Date "2023.12.12"]
[Round "2"]
[White "Belli, Giorgio"]
[Black "Harrington, Steve"]
[Result "1-0"]
[Board "148"]
[TimeControl "180+1"]
[WhiteFideId "2808833"]
[BlackFideId "2038730"]
[WhiteElo "2449"]
[BlackElo "2127"]
[WhiteTeam "ITA"]
[BlackTeam "USA"]
[WhiteClock "0:00:06"]
[BlackClock "0:00:00"]

1. e3 {[%clk 0:02:56]}  d5 {[%clk 0:02:59]} 2. d4 {[%clk 0:02:53]}  Nc6 {[%clk 0:02:57]} 3. Nf3 {[%clk 0:02:54]}  Bg4 {[%clk 0:02:56]} 4. Be2 {[%clk 0:02:52]}  e6 {[%clk 0:02:56]} 5. O-O {[%clk 0:02:51]}  Nf6 {[%clk 0:02:56]} 6. c4 {[%clk 0:02:52]}  Be7 {[%clk 0:02:56]} 7. Nc3 {[%clk 0:02:51]}  O-O {[%clk 0:02:56]} 8. Qb3 {[%clk 0:02:51]}  Rb8 {[%clk 0:02:54]} 9. cxd5 {[%clk 0:02:50]}  exd5 {[%clk 0:02:53]} 10. a3 {[%clk 0:02:48]}  Re8 {[%clk 0:02:53]} 11. Qc2 {[%clk 0:02:47]}  Bh5 {[%clk 0:02:50]} 12. b4 {[%clk 0:02:45]}  Bg6 {[%clk 0:02:48]} 13. Bd3 {[%clk 0:02:45]}  Ne4 {[%clk 0:02:47]} 14. Nd2 {[%clk 0:02:44]}  Nxc3 {[%clk 0:02:41]} 15. Qxc3 {[%clk 0:02:41]}  Bf6 {[%clk 0:02:29]} 16. Bb2 {[%clk 0:02:36]}  Ne7 {[%clk 0:02:12]} 17. Rac1 {[%clk 0:02:31]}  c6 {[%clk 0:02:11]} 18. Nb3 {[%clk 0:02:25]}  Qd6 {[%clk 0:02:01]} 19. g3 {[%clk 0:02:17]}  Rbc8 {[%clk 0:01:51]} 20. Rc2 {[%clk 0:02:05]}  Rc7 {[%clk 0:01:44]} 21. Rfc1 {[%clk 0:02:03]}  a6 {[%clk 0:01:40]} 22. Bxg6 {[%clk 0:01:49]}  hxg6 {[%clk 0:01:36]} 23. Nc5 {[%clk 0:01:30]}  Nc8 {[%clk 0:01:31]} 24. a4 {[%clk 0:01:24]}  Nb6 {[%clk 0:01:30]} 25. a5 {[%clk 0:01:23]}  Nc4 {[%clk 0:01:30]} 26. Ba1 {[%clk 0:01:13]}  Rce7 {[%clk 0:01:30]} 27. Qd3 {[%clk 0:01:02]}  g5 {[%clk 0:01:30]} 28. Rxc4 {[%clk 0:01:02]}  dxc4 {[%clk 0:01:29]} 29. Qxc4 {[%clk 0:01:00]}  Qd5 {[%clk 0:01:26]} 30. Qxd5 {[%clk 0:00:54]}  cxd5 {[%clk 0:01:27]} 31. g4 {[%clk 0:00:55]}  Rc8 {[%clk 0:01:25]} 32. Kf1 {[%clk 0:00:48]}  Rec7 {[%clk 0:01:24]} 33. Ke2 {[%clk 0:00:47]}  Rc6 {[%clk 0:01:24]} 34. Rd1 {[%clk 0:00:43]}  Be7 {[%clk 0:01:22]} 35. Bb2 {[%clk 0:00:35]}  b6 {[%clk 0:01:18]} 36. axb6 {[%clk 0:00:27]}  Rxb6 {[%clk 0:01:17]} 37. Bc3 {[%clk 0:00:27]}  Rbc6 {[%clk 0:01:04]} 38. Ra1 {[%clk 0:00:27]}  Bxc5 {[%clk 0:01:01]} 39. dxc5 {[%clk 0:00:22]}  f6 {[%clk 0:00:57]} 40. Rd1 {[%clk 0:00:20]}  Rd8 {[%clk 0:00:56]} 41. Rh1 {[%clk 0:00:19]}  Kf7 {[%clk 0:00:55]} 42. h4 {[%clk 0:00:19]}  gxh4 {[%clk 0:00:55]} 43. Rxh4 {[%clk 0:00:19]}  a5 {[%clk 0:00:51]} 44. g5 {[%clk 0:00:17]}  axb4 {[%clk 0:00:49]} 45. Bxb4 {[%clk 0:00:15]}  Rb8 {[%clk 0:00:50]} 46. gxf6 {[%clk 0:00:15]}  gxf6 {[%clk 0:00:47]} 47. Rh7+ {[%clk 0:00:14]}  Kg6 {[%clk 0:00:46]} 48. Rh4 {[%clk 0:00:15]}  Kg5 {[%clk 0:00:46]} 49. Rd4 {[%clk 0:00:15]}  Rb5 {[%clk 0:00:44]} 50. Rxd5+ {[%clk 0:00:15]}  Kg6 {[%clk 0:00:42]} 51. Rd4 {[%clk 0:00:16]}  Kf5 {[%clk 0:00:41]} 52. Kd3 {[%clk 0:00:16]}  Ke6 {[%clk 0:00:41]} 53. Kc4 {[%clk 0:00:16]}  Rb8 {[%clk 0:00:40]} 54. Rd6+ {[%clk 0:00:17]}  Rxd6 {[%clk 0:00:39]} 55. cxd6 {[%clk 0:00:18]}  Rc8+ {[%clk 0:00:39]} 56. Bc5 {[%clk 0:00:18]}  f5 {[%clk 0:00:37]} 57. f3 {[%clk 0:00:18]}  Ke5 {[%clk 0:00:37]} 58. Kb5 {[%clk 0:00:17]}  Kd5 {[%clk 0:00:36]} 59. Bb4 {[%clk 0:00:14]}  Rb8+ {[%clk 0:00:36]} 60. Ka4 {[%clk 0:00:13]}  Kc4 {[%clk 0:00:34]} 61. Ba5 {[%clk 0:00:08]}  Rb7 {[%clk 0:00:28]} 62. e4 {[%clk 0:00:07]}  fxe4 {[%clk 0:00:29]} 63. fxe4 {[%clk 0:00:08]}  Kd4 {[%clk 0:00:28]} 64. Bc7 {[%clk 0:00:06]}  Kxe4 {[%clk 0:00:27]} 65. Ka5 {[%clk 0:00:07]}  Kd5 {[%clk 0:00:24]} 66. d7 {[%clk 0:00:03]}  Kc6 {[%clk 0:00:23]} 67. d8=Q {[%clk 0:00:04]}  Rxc7 {[%clk 0:00:23]} 68. Qe8+ {[%clk 0:00:03]}  Kc5 {[%clk 0:00:22]} 69. Qe5+ {[%clk 0:00:04]}  Kc6 {[%clk 0:00:22]} 70. Kb4 {[%clk 0:00:04]}  Rb7+ {[%clk 0:00:23]} 71. Kc4 {[%clk 0:00:04]}  Rd7 {[%clk 0:00:22]} 72. Qc5+ {[%clk 0:00:05]}  Kb7 {[%clk 0:00:22]} 73. Kb5 {[%clk 0:00:05]}  Rc7 {[%clk 0:00:21]} 74. Qd5+ {[%clk 0:00:06]}  Kc8 {[%clk 0:00:21]} 75. Kb6 {[%clk 0:00:06]}  Re7 {[%clk 0:00:17]} 76. Qd6 {[%clk 0:00:05]}  Rh7 {[%clk 0:00:05]} 77. Qe6+ {[%clk 0:00:06]}  Kd8 {[%clk 0:00:00]} 78. Qg8+ {[%clk 0:00:06]} 1-0

[Event "December 12 Late 2023"]
[Site "https://www.chess.com"]
[Date "2023.12.12"]
[Round "2"]
[White "Janiashvili, Mariami"]
[Black "Lopusiewicz, Piotr"]
[Result "0-1"]
[Board "149"]
[TimeControl "180+1"]
[WhiteFideId "13612077"]
[BlackFideId "1116029"]
[WhiteElo "2124"]
[BlackElo "2443"]
[WhiteTeam "GEO"]
[BlackTeam "POL"]
[WhiteClock "0:02:04"]
[BlackClock "0:01:58"]

1. e4 {[%clk 0:03:00]}  e5 {[%clk 0:02:58]} 2. Nf3 {[%clk 0:03:00]}  Nc6 {[%clk 0:02:57]} 3. d4 {[%clk 0:02:59]}  exd4 {[%clk 0:02:57]} 4. Bc4 {[%clk 0:02:59]}  Nf6 {[%clk 0:02:57]} 5. O-O {[%clk 0:02:59]}  Nxe4 {[%clk 0:02:57]} 6. Re1 {[%clk 0:03:00]}  d5 {[%clk 0:02:57]} 7. Bxd5 {[%clk 0:03:00]}  Qxd5 {[%clk 0:02:57]} 8. Nc3 {[%clk 0:03:01]}  Qh5 {[%clk 0:02:57]} 9. Nxe4 {[%clk 0:03:01]}  Be6 {[%clk 0:02:58]} 10. Neg5 {[%clk 0:03:00]}  O-O-O {[%clk 0:02:55]} 11. Nxe6 {[%clk 0:02:58]}  fxe6 {[%clk 0:02:56]} 12. Rxe6 {[%clk 0:02:59]}  Bd6 {[%clk 0:02:56]} 13. Re1 {[%clk 0:02:54]}  Rhf8 {[%clk 0:02:49]} 14. h3 {[%clk 0:02:53]}  h6 {[%clk 0:02:33]} 15. a3 {[%clk 0:02:41]}  g5 {[%clk 0:02:26]} 16. b4 {[%clk 0:02:32]}  g4 {[%clk 0:02:23]} 17. hxg4 {[%clk 0:02:29]}  Qxg4 {[%clk 0:02:24]} 18. b5 {[%clk 0:02:28]}  Rg8 {[%clk 0:02:17]} 19. Nh4 {[%clk 0:02:19]}  Qxh4 {[%clk 0:02:10]} 20. bxc6 {[%clk 0:02:18]}  Qh2+ {[%clk 0:02:06]} 21. Kf1 {[%clk 0:02:13]}  Qxg2+ {[%clk 0:02:06]} 22. Ke2 {[%clk 0:02:12]}  Qe4+ {[%clk 0:01:59]} 23. Kd2 {[%clk 0:02:04]}  Bf4+ {[%clk 0:01:58]} 0-1

[Event "December 12 Late 2023"]
[Site "https://www.chess.com"]
[Date "2023.12.12"]
[Round "2"]
[White "Sailer, Mike"]
[Black "Dilmukhametov, Artur"]
[Result "1-0"]
[Board "152"]
[TimeControl "180+1"]
[WhiteFideId "2012901"]
[BlackFideId "24179922"]
[WhiteElo "2089"]
[BlackElo "2428"]
[WhiteTeam "USA"]
[BlackTeam "RUS"]
[WhiteClock "0:00:32"]
[BlackClock "0:00:00"]

1. d4 {[%clk 0:03:00]}  Nf6 {[%clk 0:02:59]} 2. Bg5 {[%clk 0:02:58]}  g6 {[%clk 0:02:58]} 3. Bxf6 {[%clk 0:02:55]}  exf6 {[%clk 0:02:59]} 4. e3 {[%clk 0:02:55]}  Bg7 {[%clk 0:02:59]} 5. Bd3 {[%clk 0:02:49]}  O-O {[%clk 0:02:58]} 6. h3 {[%clk 0:02:48]}  d5 {[%clk 0:02:58]} 7. Nf3 {[%clk 0:02:46]}  b6 {[%clk 0:02:56]} 8. O-O {[%clk 0:02:42]}  Bb7 {[%clk 0:02:56]} 9. c4 {[%clk 0:02:39]}  dxc4 {[%clk 0:02:41]} 10. Bxc4 {[%clk 0:02:38]}  c5 {[%clk 0:02:21]} 11. Nc3 {[%clk 0:02:31]}  Qc7 {[%clk 0:02:08]} 12. Rc1 {[%clk 0:02:25]}  Rd8 {[%clk 0:02:07]} 13. Qe2 {[%clk 0:02:10]}  Nc6 {[%clk 0:01:58]} 14. dxc5 {[%clk 0:02:04]}  bxc5 {[%clk 0:01:45]} 15. Bd5 {[%clk 0:01:45]}  Ne5 {[%clk 0:01:40]} 16. Bxb7 {[%clk 0:01:45]}  Qxb7 {[%clk 0:01:41]} 17. Nxe5 {[%clk 0:01:42]}  fxe5 {[%clk 0:01:41]} 18. e4 {[%clk 0:01:42]}  Rab8 {[%clk 0:01:37]} 19. b3 {[%clk 0:01:37]}  Bh6 {[%clk 0:01:31]} 20. Rcd1 {[%clk 0:01:35]}  Qb4 {[%clk 0:01:26]} 21. Nd5 {[%clk 0:01:33]}  Qa5 {[%clk 0:01:15]} 22. Ne7+ {[%clk 0:01:26]}  Kh8 {[%clk 0:00:50]} 23. Nc6 {[%clk 0:01:25]}  Qc7 {[%clk 0:00:50]} 24. Nxd8 {[%clk 0:01:22]}  Rxd8 {[%clk 0:00:51]} 25. Rxd8+ {[%clk 0:01:22]}  Qxd8 {[%clk 0:00:52]} 26. Rd1 {[%clk 0:01:21]}  Qc7 {[%clk 0:00:51]} 27. Qd3 {[%clk 0:01:08]}  Bg5 {[%clk 0:00:51]} 28. Qd6 {[%clk 0:01:05]}  Qxd6 {[%clk 0:00:15]} 29. Rxd6 {[%clk 0:01:04]}  Bc1 {[%clk 0:00:15]} 30. Rd5 {[%clk 0:00:52]}  Ba3 {[%clk 0:00:09]} 31. Rxe5 {[%clk 0:00:51]}  Kg7 {[%clk 0:00:08]} 32. Kf1 {[%clk 0:00:45]}  a5 {[%clk 0:00:07]} 33. Ke2 {[%clk 0:00:44]}  Kf6 {[%clk 0:00:06]} 34. Rd5 {[%clk 0:00:45]}  Ke6 {[%clk 0:00:06]} 35. Kd3 {[%clk 0:00:45]}  h5 {[%clk 0:00:04]} 36. Kc4 {[%clk 0:00:44]}  Bb4 {[%clk 0:00:00]} 37. f4 {[%clk 0:00:32]} 1-0

[Event "December 12 Late 2023"]
[Site "https://www.chess.com"]
[Date "2023.12.12"]
[Round "2"]
[White "Sari, Yasin"]
[Black "Oliveira, Tiago Batista"]
[Result "1-0"]
[Board "153"]
[TimeControl "180+1"]
[WhiteFideId "6320902"]
[BlackFideId "2108291"]
[WhiteElo "2423"]
[BlackElo "2082"]
[WhiteTeam "TUR"]
[BlackTeam "BRA"]
[WhiteClock "0:00:06"]
[BlackClock "0:00:00"]

1. d4 {[%clk 0:03:00]}  Nf6 {[%clk 0:02:57]} 2. Bf4 {[%clk 0:03:00]}  d5 {[%clk 0:02:56]} 3. e3 {[%clk 0:02:59]}  e6 {[%clk 0:02:47]} 4. Nf3 {[%clk 0:02:55]}  c5 {[%clk 0:02:39]} 5. c3 {[%clk 0:02:51]}  Nc6 {[%clk 0:02:36]} 6. Nbd2 {[%clk 0:02:47]}  b6 {[%clk 0:02:05]} 7. Bb5 {[%clk 0:02:43]}  Bd7 {[%clk 0:02:04]} 8. O-O {[%clk 0:02:35]}  a6 {[%clk 0:02:04]} 9. Bxc6 {[%clk 0:02:34]}  Bxc6 {[%clk 0:02:04]} 10. Ne5 {[%clk 0:02:23]}  Bb7 {[%clk 0:02:04]} 11. Qe2 {[%clk 0:02:13]}  Nd7 {[%clk 0:02:01]} 12. Bg3 {[%clk 0:01:53]}  Nxe5 {[%clk 0:02:01]} 13. Bxe5 {[%clk 0:01:53]}  f6 {[%clk 0:01:56]} 14. Bg3 {[%clk 0:01:49]}  Bd6 {[%clk 0:01:54]} 15. Qh5+ {[%clk 0:01:48]}  g6 {[%clk 0:01:53]} 16. Qh6 {[%clk 0:01:48]}  Bf8 {[%clk 0:01:51]} 17. Qh3 {[%clk 0:01:47]}  Qd7 {[%clk 0:01:45]} 18. Rfe1 {[%clk 0:01:39]}  Bg7 {[%clk 0:01:45]} 19. dxc5 {[%clk 0:01:27]}  bxc5 {[%clk 0:01:43]} 20. b4 {[%clk 0:01:27]}  O-O {[%clk 0:01:37]} 21. Nb3 {[%clk 0:01:26]}  Bc8 {[%clk 0:00:48]} 22. Nxc5 {[%clk 0:01:20]}  Qf7 {[%clk 0:00:49]} 23. f4 {[%clk 0:00:49]}  e5 {[%clk 0:00:45]} 24. Qh4 {[%clk 0:00:48]}  e4 {[%clk 0:00:39]} 25. f5 {[%clk 0:00:35]}  Bxf5 {[%clk 0:00:37]} 26. Qf4 {[%clk 0:00:32]}  Rfd8 {[%clk 0:00:22]} 27. Rf1 {[%clk 0:00:30]}  a5 {[%clk 0:00:21]} 28. a3 {[%clk 0:00:24]}  Qa7 {[%clk 0:00:16]} 29. Rac1 {[%clk 0:00:18]}  h5 {[%clk 0:00:13]} 30. Qh4 {[%clk 0:00:15]}  Kh7 {[%clk 0:00:11]} 31. Rxf5 {[%clk 0:00:15]}  gxf5 {[%clk 0:00:12]} 32. Qxh5+ {[%clk 0:00:15]}  Kg8 {[%clk 0:00:12]} 33. Qxf5 {[%clk 0:00:12]}  axb4 {[%clk 0:00:11]} 34. axb4 {[%clk 0:00:13]}  Qf7 {[%clk 0:00:10]} 35. Rf1 {[%clk 0:00:12]}  Ra2 {[%clk 0:00:09]} 36. Bh4 {[%clk 0:00:10]}  Rd6 {[%clk 0:00:08]} 37. Bg3 {[%clk 0:00:09]}  Rd8 {[%clk 0:00:08]} 38. Be5 {[%clk 0:00:09]}  Rf8 {[%clk 0:00:07]} 39. Bd4 {[%clk 0:00:06]}  Kh8 {[%clk 0:00:06]} 40. Ne6 {[%clk 0:00:06]}  Rg8 {[%clk 0:00:06]} 41. Nxg7 {[%clk 0:00:06]}  Qxg7 {[%clk 0:00:06]} 42. g3 {[%clk 0:00:06]}  Rf8 {[%clk 0:00:05]} 43. Bxf6 {[%clk 0:00:06]}  Rxf6 {[%clk 0:00:05]} 44. Qxf6 {[%clk 0:00:07]}  Qxf6 {[%clk 0:00:05]} 45. Rxf6 {[%clk 0:00:07]}  Rc2 {[%clk 0:00:05]} 46. Rc6 {[%clk 0:00:07]}  Kg7 {[%clk 0:00:05]} 47. b5 {[%clk 0:00:07]}  Kf7 {[%clk 0:00:04]} 48. b6 {[%clk 0:00:06]}  Ke7 {[%clk 0:00:03]} 49. h4 {[%clk 0:00:05]}  Kd7 {[%clk 0:00:03]} 50. Rc7+ {[%clk 0:00:06]}  Kd6 {[%clk 0:00:03]} 51. h5 {[%clk 0:00:06]}  Rb2 {[%clk 0:00:00]} 52. Rg7 {[%clk 0:00:06]} 1-0

[Event "December 12 Late 2023"]
[Site "https://www.chess.com"]
[Date "2023.12.12"]
[Round "2"]
[White "Ghosh, Chanchal Kumer"]
[Black "Melikhov, Evgeny V."]
[Result "0-1"]
[Board "154"]
[TimeControl "180+1"]
[WhiteFideId "10201858"]
[BlackFideId "4122046"]
[WhiteElo "2077"]
[BlackElo "2415"]
[WhiteTeam "BAN"]
[BlackTeam "GRE"]
[WhiteClock "0:00:00"]
[BlackClock "0:00:44"]

1. e4 {[%clk 0:02:53]}  c5 {[%clk 0:02:58]} 2. Nf3 {[%clk 0:02:53]}  d6 {[%clk 0:02:58]} 3. d4 {[%clk 0:02:51]}  cxd4 {[%clk 0:02:58]} 4. Nxd4 {[%clk 0:02:51]}  Nf6 {[%clk 0:02:58]} 5. Nc3 {[%clk 0:02:51]}  a6 {[%clk 0:02:58]} 6. Be2 {[%clk 0:02:46]}  e6 {[%clk 0:02:58]} 7. O-O {[%clk 0:02:46]}  Be7 {[%clk 0:02:58]} 8. Be3 {[%clk 0:02:46]}  O-O {[%clk 0:02:58]} 9. f4 {[%clk 0:02:46]}  Qc7 {[%clk 0:02:54]} 10. Bf3 {[%clk 0:02:41]}  Nc6 {[%clk 0:02:53]} 11. a4 {[%clk 0:02:36]}  Na5 {[%clk 0:02:48]} 12. Kh1 {[%clk 0:02:07]}  Rb8 {[%clk 0:02:43]} 13. Qe2 {[%clk 0:02:05]}  Re8 {[%clk 0:02:36]} 14. Rad1 {[%clk 0:02:04]}  Qc4 {[%clk 0:02:11]} 15. Qf2 {[%clk 0:01:57]}  b5 {[%clk 0:01:49]} 16. axb5 {[%clk 0:01:41]}  axb5 {[%clk 0:01:48]} 17. Be2 {[%clk 0:01:32]}  Qb4 {[%clk 0:01:47]} 18. Bxb5 {[%clk 0:01:20]}  Ng4 {[%clk 0:01:34]} 19. Qe2 {[%clk 0:01:08]}  Nxe3 {[%clk 0:01:34]} 20. Qxe3 {[%clk 0:01:07]}  Rd8 {[%clk 0:01:25]} 21. b3 {[%clk 0:00:58]}  Bb7 {[%clk 0:01:15]} 22. Nb1 {[%clk 0:00:35]}  Qc5 {[%clk 0:01:04]} 23. c3 {[%clk 0:00:33]}  Nxb3 {[%clk 0:00:59]} 24. Bd3 {[%clk 0:00:19]}  Nxd4 {[%clk 0:00:57]} 25. cxd4 {[%clk 0:00:20]}  Qb4 {[%clk 0:00:55]} 26. e5 {[%clk 0:00:18]}  g6 {[%clk 0:00:54]} 27. Nd2 {[%clk 0:00:17]}  dxe5 {[%clk 0:00:52]} 28. dxe5 {[%clk 0:00:18]}  Qd4 {[%clk 0:00:51]} 29. Qxd4 {[%clk 0:00:12]}  Rxd4 {[%clk 0:00:50]} 30. Nf3 {[%clk 0:00:12]}  Rxf4 {[%clk 0:00:49]} 31. Rb1 {[%clk 0:00:08]}  Rb4 {[%clk 0:00:47]} 32. Rxb4 {[%clk 0:00:08]}  Bxb4 {[%clk 0:00:47]} 33. Rb1 {[%clk 0:00:08]}  Bd5 {[%clk 0:00:45]} 34. Nd4 {[%clk 0:00:00]}  Rb6 {[%clk 0:00:44]} 0-1